Cogmind - Beta 15 @@@ ROGUE MODE // 2025.07.05 @ 18:33:08 Player: Vaya Result: Destroyed by G-34 Mercenary with Small Laser Performance ------------- Evolutions (1) 500 Regions Visited (2) 400 Robots Destroyed (11) 55 Value Destroyed (288) 288 Prototype IDs (0) 0 Alien Tech Used (0) 0 Bonus (0) 0 TOTAL SCORE: 1243 Bonus ------- None Cogmind --------- Core Integrity 0/400 Matter 300/300 Energy 100/100 System Corruption 0% Temperature Cool (6) Movement Core (1400) Ox27 Location -9/Materials Parts ------- > --- POWER (2) -------- (None) > --- PROPULSION (2) --- (None) > --- UTILITY (3) ------ Huge Storage Unit Targeting Computer Propulsion Shielding > --- WEAPON (2) ------- Heavy Hammer > --- INVENTORY (25) --- Medium Laser Medium Laser Peak State ------------ > --- POWER ------------ Ion Engine > --- PROPULSION ------- Aluminum Leg Aluminum Leg > --- UTILITY ---------- Huge Storage Unit Medium Matter Pod Terrain Scanner > --- WEAPON ----------- EM Pulse Gun Light Assault Rifle > --- INVENTORY -------- Targeting Computer Propulsion Shielding Medium Laser Light Cannon [Rating: 8] Favorites ----------- Power Ion Engine Engine Ion Engine Propulsion Aluminum Leg Leg Aluminum Leg Wheel Wheel Utility Huge Storage Unit Device Terrain Scanner Storage Huge Storage Unit Processor Targeting Computer Protection Propulsion Shielding Weapon Medium Laser Energy Gun Medium Laser Ballistic Gun Light Assault Rifle Ballistic Cannon Light Cannon Launcher Grenade Launcher Impact Weapon Heavy Hammer Build | -11 -10 -9 ------- Run | Yrd Mat Mat Slots Evolved 2 | . . 2 Power 1 | . . 1 Propulsion . | . . . Utility 1 | . . 1 Weapon . | . . . Parts Attached 25 | 9 5 11 Power 3 | 2 . 1 Engine 3 | 2 . 1 Core . | . . . Reactor . | . . . Propulsion 4 | 4 . . Treads . | . . . Leg 2 | 2 . . Wheel 2 | 2 . . Hover . | . . . Flight . | . . . Utility 6 | 1 2 3 Device 2 | . 2 . Storage 2 | 1 . 1 Processor 1 | . . 1 Hackware . | . . . Protection 1 | . . 1 Artifact . | . . . Weapon 12 | 2 3 7 Energy Gun 7 | 2 . 5 Energy Cannon . | . . . Ballistic Gun 1 | . 1 . Ballistic Cannon 1 | . 1 . Launcher 1 | . 1 . Special Weapon . | . . . Impact Weapon 2 | . . 2 Slashing Weapon . | . . . Piercing Weapon . | . . . Special Melee Weapon . | . . . Unidentified Prototypes . | . . . Parts Lost 14 | . 1 13 Power 2 | . . 2 Propulsion 2 | . . 2 Utility 3 | . 1 2 Weapon 7 | . . 7 Highest Loss Streak 6 | . 1 6 To Critical Strikes . | . . . Average Backups 2 | . 2 2 Power . | . . . Propulsion . | . . . Utility . | . . . Weapon 1 | . 1 1 Tool/Special . | . . . Unused Backups . | . . . Power . | . . . Propulsion . | . . . Utility . | . . . Weapon . | . . . Tool/Special . | . . . Average Slot Usage (%) 68 | . 95 60 Engine 5 | . 14 3 Leg 12 | . 28 7 Device 4 | . 9 2 Storage 15 | . 14 15 Processor 6 | . . 8 Protection 3 | . . 4 Energy Gun 12 | . 17 10 Ballistic Gun 2 | . 2 2 Launcher 1 | . 4 . Impact Weapon 4 | . . 5 Peak Build Rating 8 | 6 7 8 Average Rating 6 | 4 6 5 On Entrance 4 | . 6 7 Naked Turns . | . . . Heaviest Build 91 | 11 13 91 Greatest Support 20 | 20 20 20 Greatest Overweight (x) 28 | . . 28 Average Overweight (x) 3 | . . 12 Largest Inventory Capacity 25 | 5 5 25 Average Capacity 19 | 5 5 24 Most Carried 6 | 4 5 6 Average Carried 2 | . 2 2 Final Capacity 25 | 5 5 25 Final Carried 5 | . 5 2 Class Distribution -------------------- 100% | Mutant Dominant Class ---------------- Mutant | -10/Materials Mutant | -9/Materials Resources | -11 -10 -9 ----------- Run | Yrd Mat Mat Matter Collected 530 | 296 45 189 Remotely . | . . . Salvage Created 334 | 70 51 213 Parts 16 | 2 7 7 Haulers Intercepted . | . . . Recyclers Shooed . | . . . Parts Field Recycled . | . . . Retrieved Matter . | . . . Parts Self-Destructed . | . . . Prevented . | . . . Kills | -11 -10 -9 ------- Run | Yrd Mat Mat Combat Hostiles Destroyed 8 | 1 3 4 Guns 6 | 1 1 4 Cannons 2 | . 2 . Classes Destroyed 7 | 2 2 3 Worker 1 | 1 . . Mechanic 1 | . . 1 Watcher 1 | . 1 . Swarmer 2 | . 2 . Grunt 4 | 1 1 2 Duelist 1 | . . 1 Sentry 1 | . . 1 Best Kill Streak 4 | 2 2 4 Combat Bots Only 3 | 1 2 3 Max Kills in Single Turn 1 | 1 1 1 Gunslinging . | . . . Exploded . | . . . Melee . | . . . Uniques/NPCs Destroyed . | . . . Combat | -11 -10 -9 -------- Run | Yrd Mat Mat Hostile Shots Fired 138 | 5 37 96 Missed 45 | 2 12 31 Hits 93 | 3 25 65 Melee 9 | . . 9 Projectile 84 | 3 25 56 AOE 1 | . . 1 Critical Strikes 5 | . . 5 Damage Taken 1310 | 33 204 1073 Core 468 | 22 41 405 Absorbed by Shields . | . . . Core Remaining (%) 82 | 91 74 . Volleys Fired 40 | 4 12 24 Largest 2 | 2 2 2 Hottest 90 | 90 70 80 Shots Fired 60 | 8 22 30 Gun 48 | 8 12 28 Cannon 5 | . 4 1 Launcher 7 | . 6 1 Special . | . . . Kinetic 9 | . 4 5 Thermal 26 | 4 . 22 Explosive 7 | . 6 1 Electromagnetic 18 | 4 12 2 Robot Hit Streak 10 | 2 2 10 Robot Miss Streak 3 | 3 3 2 Penetration Max . | . . . Secondary Targets . | . . . Shots Hit Robots 30 | 3 5 22 Core Hits 22 | 3 7 12 Critical Kills . | . . . Critical Parts Destroyed . | . . . Critical Strikes 3 | . . 3 Burn 3 | . . 3 Melee Attacks . | . . . Impact . | . . . Slashing . | . . . Piercing . | . . . Sneak Attacks . | . . . Combat Hostiles . | . . . Follow-up Attacks . | . . . Damage Inflicted 478 | 50 128 300 Guns 347 | 50 12 285 Cannons 66 | . 51 15 Explosions 65 | . 65 . Melee . | . . . Ramming . | . . . Kinetic 81 | . 51 30 Thermal 283 | 25 . 258 Explosive 65 | . 65 . Electromagnetic 49 | 25 12 12 Impact . | . . . Slashing . | . . . Piercing . | . . . Highest Corruption . | . . . Average Corruption . | . . . Corruption Purged . | . . . Corruption Blocked . | . . . Overload Shots . | . . . Overflow Damage . | . . . Projectiles . | . . . Explosions . | . . . Melee . | . . . Knockbacks . | . . . Impact . | . . . Kinetic . | . . . Secondary . | . . . Self-Inflicted Damage . | . . . Shots . | . . . Rammed . | . . . Targets Rammed . | . . . Kicked . | . . . Crushed . | . . . Highest Temperature 138 | 138 27 57 Average Temperature 29 | 70 12 24 Received Heat Transfer 378 | 18 . 360 Siege Activations . | . . . Martial Activations . | . . . Shielding Activations . | . . . Robots Disrupted . | . . . Combat Hostiles . | . . . Robots Corrupted . | . . . Combat Hostiles . | . . . Parts Fried . | . . . Impact Corruptions . | . . . Robots Melted . | . . . Combat Hostiles . | . . . Parts Melted 5 | 1 . 4 Heat Transferred 1073 | 74 . 999 Parts Sabotaged . | . . . Parts Stolen . | . . . Parts Stripped . | . . . Power Chain Reactions . | . . . Alert | -11 -10 -9 ------- Run | Yrd Mat Mat Maximum Alert Level . | . . . Low Security (%) 100 | 100 100 100 Level 1 . | . . . Level 2 . | . . . Level 3 . | . . . Level 4 . | . . . Level 5 . | . . . High Security . | . . . Max Security . | . . . Peak Influence 61 | 25 61 50 Initial 9 | . 9 . Average 6 | 3 16 3 Influence Increases 286 | 25 121 140 Destroy 0b10 Robot/C 160 | 20 60 80 Destroy 0b10 Robot/NC 15 | 5 5 5 Destroy Leader 22 | . 2 20 Disable Machine 15 | . . 15 Destroy Structure 29 | . 24 5 Lose Combat Pursuer 45 | . 30 15 Influence Decreases 286 | 10 136 140 Entered New Map 6 | . 6 . Time Decay 225 | 10 120 95 Lost Part 55 | . 10 45 Squads Dispatched 1 | . . 1 Investigation . | . . . Extermination . | . . . Reinforcement 1 | . . 1 Assault . | . . . Garrison . | . . . Intercept . | . . . Searches Triggered . | . . . Construction Impeded . | . . . Haulers Reinforced . | . . . Active Scanning Responses . | . . . Cargo Convoy Interrupts . | . . . Stealth | -11 -10 -9 --------- Run | Yrd Mat Mat Distress Signals 3 | . 1 2 Communications Jammed . | . . . Distress Signals . | . . . Times Spotted 15 | 1 7 7 Peak Tracking Total 3 | 1 3 3 Tactical Retreats 2 | . 1 1 Traps | -11 -10 -9 ------- Run | Yrd Mat Mat Traps Triggered . | . . . Indirectly . | . . . Trap Hack Attempts . | . . . Triggered . | . . . Disarmed . | . . . Reprogrammed . | . . . Reused . | . . . Traps Extracted . | . . . Installed . | . . . Triggered . | . . . Machines | -11 -10 -9 ---------- Run | Yrd Mat Mat Machines Disabled 1 | . . 1 Max in Single Turn 1 | . . 1 Machines Repaired . | . . . Machines Dismantled . | . . . Machines Sabotaged . | . . . Overloaded Fab Kills . | . . . Hacking | -11 -10 -9 --------- Run | Yrd Mat Mat Machines Accessed 2 | . 2 . Terminals 2 | . 2 . Fabricators . | . . . Repair Stations . | . . . Recycling Units . | . . . Scanalyzers . | . . . Garrison Access . | . . . Total Hacks 3 | . 3 . Successful 3 | . 3 . Failed . | . . . Catastrophic . | . . . Database Lockouts . | . . . Manual . | . . . Terminals 3 | . 3 . Fabricators . | . . . Repair Stations . | . . . Recycling Units . | . . . Scanalyzers . | . . . Garrison Access . | . . . Terminal Hacks 3 | . 3 . Emergency Access Points 1 | . 1 . Alert Level 1 | . 1 . Zone Layout 1 | . 1 . Fabricator Hacks . | . . . Repair Station Hacks . | . . . Recycling Unit Hacks . | . . . Scanalyzer . | . . . Garrison Access Hacks . | . . . Unauthorized Hacks . | . . . Terminals . | . . . Fabricators . | . . . Repair Stations . | . . . Recycling Units . | . . . Scanalyzers . | . . . Garrison Access . | . . . Data Cores Recovered . | . . . Used . | . . . Hacking Detections . | . . . Full Trace Events . | . . . Feedback Events . | . . . Feedback Blocked . | . . . Robot Schematics Acquired . | . . . Robots Built . | . . . Authchips . | . . . Time . | . . . Total Robot Build Rating . | . . . Part Schematics Acquired . | . . . Parts Built . | . . . Authchips . | . . . Time . | . . . Total Part Build Rating . | . . . Parts Repaired . | . . . Time . | . . . Parts Recycled . | . . . Recycled Matter . | . . . Retrieved Matter . | . . . Retrieved Components . | . . . Parts Scanalyzed . | . . . Part Schematics Acquired . | . . . Parts Damaged . | . . . Bothacking | -11 -10 -9 ------------ Run | Yrd Mat Mat Used RIF Installer . | . . . Robots Hacked . | . . . Non-combat . | . . . Combat . | . . . Robot Hacks Applied . | . . . Relay Couplers Released . | . . . Fabnet Peak Effective % . | . . . Robots Rewired . | . . . Allies Hacked . | . . . Hacks Repelled . | . . . Allies | -11 -10 -9 -------- Run | Yrd Mat Mat Total Allies . | . . . Largest Group . | . . . Highest-Rated Group . | . . . Highest-Rated Ally . | . . . Total Orders . | . . . Ally Attacks . | . . . Total Damage . | . . . Kills . | . . . Allies Corrupted . | . . . Allies Melted . | . . . Intel | -11 -10 -9 ------- Run | Yrd Mat Mat Active Infowar (turns) 597 | . 318 279 Sensors 169 | . 169 . Terrain 428 | . 149 279 Robot Analysis Total . | . . . Derelict Logs Recovered . | . . . Drone Launches . | . . . Drone Recoveries . | . . . Exploration | -11 -10 -9 ------------- Run | Yrd Mat Mat Turns Passed 1955 | 136 426 1393 Spaces Moved 576 | 99 312 165 Core 73 | 20 . 53 Treads . | . . . Legs 501 | 77 312 112 Wheels 2 | 2 . . Hover . | . . . Flight . | . . . Fastest Speed 50 | 50 120 120 Average Speed 313 | 105 120 804 Slowest Speed 1450 | 120 120 1450 Overloaded Moves . | . . . Propulsion Burnouts . | . . . Robots Hopped . | . . . Potential Cave-ins . | . . . Cave-ins Triggered . | . . . Exploration Rate (%) 18 | 6 37 13 Regions Visited 2 Branch Regions . Pre-discovered Areas . | . . . Known Exits Taken . | . . . Unknown Exits Taken 2 | 1 1 . Scrap Searched . | . . . Spaces Dug . | . . . Terrain Destroyed 39 | . 34 5 Melee . | . . . Projectile . | . . . AOE 39 | . 34 5 Terrain Rammed . | . . . Walls Destroyed . | . . . Machines Disabled . | . . . Actions | -11 -10 -9 --------- Run | Yrd Mat Mat Total 678 | 125 341 212 Wait 4 | . 4 . Move 574 | 98 311 165 Hop . | . . . Pick Up 26 | 9 8 9 Fast Attach . | . . . Attach 22 | 8 3 11 Detach 2 | 2 . . Swap 5 | 1 2 2 Drop 5 | 3 1 1 Fire 40 | 4 12 24 Melee . | . . . Ram . | . . . Kick . | . . . Crush . | . . . Escape Stasis . | . . . Rewire . | . . . Trap . | . . . Miscellaneous . | . . . Route ------- -11/Scrapyard -10/Materials -9/Materials History --------- Turn | Location | Event 2 | -11/Scrapyard | Met Revision 17 82 | -11/Scrapyard | Discovered new exit (range 8) 137 | -11/Scrapyard | Entered Materials 307 | -10/Materials | Build established: Mutant 538 | -10/Materials | Discovered new exit (range 8) 563 | -10/Materials | Entered another Materials area 563 | -9/Materials | Evolved 2 slots: Power x1, Utility x1 873 | -9/Materials | Lost 6 parts (1p1n1u3w) 1172 | -9/Materials | Core integrity fell below 50% 1219 | -9/Materials | Core integrity fell below 20% 1236 | -9/Materials | Lost 6 parts (1p1n1u3w) 1956 | -9/Materials | Destroyed by G-34 Mercenary with Small Laser Last Messages --------------- Integration Channel comes online. U-05 Engineer works on Purification Channel. K-01 Serf collects debris. U-05 Engineer works on Purification Channel. K-01 Serf cleans the Integration Channel. K-01 Serf collects debris. U-05 Engineer works on Purification Channel. K-01 Serf cleans the Integration Channel. W-16 Scout sends out distress signal. U-05 Engineer works on Purification Channel. W-16 Scout sends out distress signal. U-05 Engineer works on Purification Channel. Purification Channel comes online. [Achievement: Crack Shot] Med. Laser destroyed. K-01 Serf cleans the Purification Channel. [Achievement: First Step to Greatness] Map ----- +----------------------------------------------------+ | ?????????????????????????????????????????????????? | | ?????????????????????????????????????????????????? | | ?????????????????????????????????????????????????? | | ?????????????????????????????????????????????????? | | ?????????????????????????????????????????????????? | | ??????????????????????????????????????#??????????? | | ???????????????????????###???????????????????#???? | | ???????????????????????# ########?????????##?????? | | ???????????????????????# #????????????????? | | ???????????????????????# ##????##?????????? | | ???????????????????????# ##??#?????#?#?#??? | | ??????????????????????## ###???????#???#??? | | ??????????????????????## # #???###?##?????? | | ??????????????????????## # #??????#???????? | | ??????????????????????## # ##?#??????###### | | ??????????????????????##[ # ##???#????# """ | | ??????????????????????##[ # ##??#???#?# """ | | ??????????????????????######+#########??????# """ | | ???????????????????????# # ######## | | ???????????????????????#### + | | ??????????????????????????# ######## | | ??????????????????????#???######## #??#???# | | ????????????????###########??????# % #???#??###### | | ????????????????# #??#????#% %#?#?#?????##? | | ????????????????# ######### ##?#??####### | | ????????????????# g @ a ####### | | ????????????????# ######## ! | | ????????????????# #??????# " | | ????????????? #??#???# | | ?????????? ""?????# ###+### | | ??????????? k" " ! T??????######## !####### | | ??????????? """ """ "????????? # [#?????? | | ???????????? """ """ #????????? # #?????? | | ????????????? "" """ ????????? # #?????? | | ????????????? " ? "" ????????? [# #?????? | | ?????????????? ?????" ????????? # #?????? | | ?????????????? ?????? #???????????" # #?????? | | ????????????????????? ??????????????#####?????? | | ????????????????????? ????????????????????????? | | ????????????????????? ????????????????????????? | | ?????????????????????? ????????????????????????? | | ?????????????????????????????????????????????????? | | ?????????????????????????????????????????????????? | | ?????????????????????????????????????????????????? | | ?????????????????????????????????????????????????? | | ?????????????????????????????????????????????????? | | ?????????????????????????????????????????????????? | | ?????????????????????????????????????????????????? | | ?????????????????????????????????????????????????? | | ?????????????????????????????????????????????????? | +----------------------------------------------------+ Best States ------------- Heat Dissipation 28 Energy Generation 10 Energy Capacity 250 Matter Stores 400 Matter Capacity 400 Sight Range 16 Robot Scan Range 14 Terrain Scan Range 14 Terrain Scan Density 10 Propulsion Shielding 33 Evasion (%) 55 Targeting Accuracy 5 Item Schematics ----------------- None Robot Schematics ------------------ None Fabricated ------------ Nothing Repaired ---------- Nothing Alien Tech Used ----------------- None Achievements -------------- Crack Shot First Step to Greatness Uninvited Guest Challenges ------------ None Game ------ Seed OvertunedBurstBlade Manual? 0 Play Time 00:27:43 Cumulative 0.4 hours Start 2025.07.05 @ 18:04:20 End 2025.07.05 @ 18:33:08 Sessions 1 Manual Loads 0 Difficulty Rogue Special Mode None Game No. 1 Rogue 1 Adventurer 0 Explorer 0 Win Type - Total 0 Types 0/0/0/0/0/0/0/0/0/0 Lore% 0 Gallery% 1 Achievement% 1 Wizard Run 0 Options --------- Layout 1 ASCII 0 Keyboard 0 Movement Mouse Keybinds 0 Fullscreen 1 Font 24/Smallcaps Map View 50x35 Zoom Use 0% Tactical HUD 0 Map Filters NONE Filters NONE Steam 1 RUN: 1581e785-27da-401e-ae26-d4ebda2d6fe6